bitfinex-derivatives/quotes_SOLF0:USTF0_20220101
["timestamp","ask_amount","ask_price","bid_price","bid_amount"]
[1641044456809,9.35212438,172.82,172.78,4.11113707]
[1641044457009,12.33012409,172.82,172.78,4.11113707]
[1641044457509,12.33012409,172.81,172.77,5.74180086]
[1641044458010,2.47946387,172.83,172.77,5.74180086]
[1641044459212,12.33006641,172.82,172.78,4.11113707]
[1641044461115,12.33006641,172.81,172.77,5.74180086]
[1641044461713,6.234,172.82,172.77,5.74180086]
[1641044461913,6.234,172.82,172.78,4.11113707]
[1641044461914,2.47946387,172.81,172.78,4.11113707]
[1641044462613,18.5639699,172.82,172.78,4.11113707]
[1641044463014,2.47952694,172.81,172.78,4.11113707]
[1641044463917,18.5639699,172.82,172.78,4.11113707]
[1641044464518,2.47955782,172.81,172.78,4.11113707]
[1641044464819,18.5639699,172.82,172.78,4.11113707]
[1641044466021,2.47948388,172.81,172.78,4.11113707]
[1641044466621,18.56378075,172.82,172.78,4.11113707]
[1641044467220,2.47943797,172.81,172.78,4.11113707]
[1641044467821,6.234,172.82,172.78,4.11113707]
[1641044468023,12.32948887,172.83,172.79,4.11113707]
[1641044468625,14.80884414,172.83,172.79,4.11113707]
[1641044470223,17.80884414,172.83,172.79,4.11113707]
[1641044471423,17.80884414,172.83,172.78,5.74180086]
[1641044471424,14.80884414,172.82,172.78,5.74180086]
[1641044472025,3.0,172.83,172.78,5.74180086]
[1641044472927,14.80932355,172.82,172.78,5.74180086]
[1641044473527,3.0,172.83,172.78,5.74180086]
[1641044474031,2.47948139,172.82,172.78,5.74180086]
[1641044474232,14.80933837,172.82,172.78,5.74180086]
[1641044474833,3.0,172.83,172.78,5.74180086]
[1641044475234,2.47941726,172.82,172.78,5.74180086]
[1641044475434,14.80909935,172.82,172.78,5.74180086]
[1641044476134,12.35212438,172.84,172.78,5.74180086]
[1641044476534,17.80871659,172.83,172.79,4.11113707]
[1641044476737,3.0,172.82,172.79,4.11113707]
[1641044477237,17.80871659,172.83,172.79,4.11113707]
[1641044477736,2.47931457,172.81,172.78,5.74180086]
[1641044478539,5.47941807,172.83,172.78,4.11113707]
[1641044479143,14.809119,172.82,172.78,4.11113707]
[1641044479747,12.35212438,172.84,172.78,4.11113707]
[1641044480744,2.47942927,172.83,172.78,4.11113707]
[1641044480945,12.32971485,172.82,172.78,4.11113707]
[1641044481146,15.32971485,172.82,172.78,4.11113707]
[1641044481346,20.67171485,172.82,172.78,4.11113707]
[1641044481547,8.342,172.82,172.78,4.11113707]
[1641044481747,5.342,172.82,172.78,4.11113707]
[1641044482146,2.47942927,172.81,172.78,4.11113707]
[1641044482749,12.32987079,172.82,172.78,4.11113707]
[1641044483654,15.32987079,172.82,172.78,4.11113707]
[1641044484250,12.32987079,172.82,172.78,4.11113707]
[1641044485252,15.32987079,172.82,172.78,4.11113707]
[1641044485855,12.32987079,172.82,172.78,4.11113707]
[1641044487156,3.0,172.83,172.78,4.11113707]
[1641044487657,12.32978123,172.82,172.78,4.11113707]
[1641044488756,3.0,172.83,172.78,4.11113707]
[1641044489357,12.32982895,172.82,172.78,4.11113707]
[1641044489558,15.32982895,172.82,172.78,4.11113707]
[1641044490160,3.0,172.82,172.78,4.11113707]
[1641044490359,3.0,172.83,172.78,4.11113707]
[1641044490660,3.0,172.82,172.78,4.11113707]
[1641044490860,15.32994593,172.82,172.78,4.11113707]
[1641044491059,12.32994593,172.82,172.78,4.11113707]
[1641044491461,3.0,172.8,172.78,4.11113707]
[1641044491963,3.0,172.81,172.78,4.11113707]
[1641044492159,3.0,172.81,172.77,4.11113707]
[1641044492359,12.32994593,172.81,172.77,4.11113707]
[1641044492761,3.0,172.8,172.77,4.11113707]
[1641044493462,3.0,172.82,172.77,4.11113707]
[1641044494362,12.33035305,172.81,172.77,4.11113707]
[1641044495063,3.0,172.82,172.77,4.11113707]
[1641044495862,3.0,172.83,172.77,4.11113707]
[1641044496063,12.33061462,172.81,172.77,31.77592707]
[1641044496764,12.33061462,172.81,172.77,34.77592707]
[1641044496963,12.33061462,172.84,172.8,4.11113707]
[1641044497665,15.33061462,172.85,172.79,5.74180086]
[1641044498466,2.47434774,172.84,172.79,5.74180086]
[1641044498865,12.33061462,172.85,172.79,5.74180086]
[1641044500066,12.33061462,172.85,172.82,27.66479]
[1641044500465,14.80494742,172.86,172.82,27.66479]
[1641044500665,17.80494742,172.86,172.82,27.66479]
[1641044501268,14.80494742,172.85,172.82,27.66479]
[1641044502867,12.33061462,172.85,172.82,27.66479]
[1641044504267,14.80494742,172.85,172.82,27.66479]
[1641044504769,20.78094742,172.85,172.82,27.66479]
[1641044505571,2.4743328,172.84,172.82,27.66479]
[1641044506271,18.30661462,172.85,172.82,27.66479]
[1641044506871,2.47432618,172.84,172.82,27.66479]
[1641044507672,18.30661462,172.85,172.82,27.66479]
[1641044508573,2.47432677,172.84,172.82,27.66479]
[1641044509274,18.30661462,172.85,172.82,27.66479]
[1641044509973,2.47887353,172.84,172.82,27.66479]
[1641044511174,12.33061462,172.85,172.82,27.66479]
[1641044512073,14.80950184,172.85,172.82,27.66479]
[1641044512575,12.33061462,172.85,172.82,27.66479]
[1641044513376,14.80950184,172.85,172.82,27.66479]
[1641044516082,14.80950184,172.85,172.81,4.11113707]
[1641044516383,14.80950184,172.85,172.8,4.11113707]
[1641044516883,4.10894903,172.81,172.8,4.11113707]
[1641044517484,14.80950184,172.85,172.8,4.11113707]
[1641044518083,14.80950184,172.85,172.81,27.66479]
[1641044521493,14.80950184,172.85,172.81,31.77592707]
[1641044522996,14.80950184,172.85,172.81,4.11113707]
[1641044523195,3.0,172.86,172.81,4.11113707]
[1641044523901,14.80505741,172.85,172.81,4.11113707]
[1641044524100,19.13205741,172.85,172.81,31.77592707]
[1641044524502,2.47851414,172.84,172.81,31.77592707]
[1641044525703,12.32654816,172.85,172.81,31.77592707]
[1641044526303,2.47850267,172.85,172.81,31.77592707]
[1641044527103,15.32653972,172.86,172.81,31.77592707]
[1641044527706,2.47878885,172.85,172.81,31.77592707]
[1641044527903,14.80532857,172.85,172.81,31.77592707]
[1641044528505,3.0,172.86,172.81,31.77592707]
[1641044529004,14.80677354,172.85,172.81,31.77592707]
[1641044529505,3.0,172.86,172.81,31.77592707]
[1641044530205,14.80681643,172.85,172.81,31.77592707]
[1641044530705,3.0,172.86,172.81,31.77592707]
[1641044531407,14.80686799,172.85,172.81,31.77592707]
[1641044532108,3.0,172.86,172.81,31.77592707]
[1641044532508,14.80687734,172.85,172.81,31.77592707]
[1641044532708,19.99887734,172.85,172.81,31.77592707]
[1641044533009,19.99887734,172.85,172.81,4.11113707]
[1641044533213,2.47752058,172.84,172.81,4.11113707]
[1641044533813,17.51356498,172.85,172.81,4.11113707]
[1641044534113,17.51356498,172.85,172.81,31.77592707]
[1641044534413,17.51356498,172.85,172.81,4.11113707]
[1641044534614,4.10718225,172.82,172.81,4.11113707]
[1641044535313,17.51357339,172.85,172.81,4.11113707]
[1641044536018,2.47751809,172.84,172.81,4.11113707]
[1641044536216,2.47751809,172.84,172.81,31.77592707]
[1641044536718,17.51358637,172.85,172.81,31.77592707]
[1641044537316,2.47752387,172.84,172.81,31.77592707]
[1641044538016,17.51354884,172.85,172.81,31.77592707]
[1641044538717,4.10595023,172.82,172.81,31.77592707]
[1641044539322,5.192,172.85,172.81,33.40516642]
[1641044539621,15.31785069,172.86,172.81,33.40516642]
[1641044539921,4.10591546,172.82,172.81,31.77592707]
[1641044540521,15.31785069,172.86,172.81,31.77592707]
[1641044540722,2.47667566,172.85,172.81,33.40517053]
[1641044541321,4.10592198,172.82,172.81,31.77592707]
[1641044542022,4.10589161,172.83,172.81,5.74038327]
[1641044542622,3.0,172.85,172.81,5.74038327]
[1641044542825,4.10607475,172.82,172.8,4.11113707]
[1641044543624,4.10611845,172.81,172.8,4.11113707]
[1641044545126,5.47692895,172.83,172.8,4.11113707]
[1641044546026,3.0,172.83,172.8,4.11113707]
[1641044546226,3.0,172.83,172.79,1.6292462]
[1641044546227,4.10635948,172.81,172.79,5.74038327]
[1641044546726,4.10725711,172.8,172.79,5.74038327]
[1641044547426,2.47773428,172.83,172.79,5.74038327]
[1641044547628,5.47773428,172.83,172.79,5.74038327]
[1641044548027,4.10730482,172.8,172.79,5.74038327]
[1641044548730,42.98264069,172.84,172.79,5.74038327]
[1641044548929,3.0,172.83,172.79,5.74038327]
[1641044549128,42.98264069,172.84,172.79,5.74038327]
[1641044549328,4.10729331,172.8,172.79,5.74038327]
[1641044550031,3.0,172.83,172.79,5.74038327]
[1641044550632,4.10734034,172.8,172.79,5.74038327]
[1641044551231,5.47769315,172.83,172.79,5.74038327]
[1641044551431,2.47769315,172.83,172.79,5.74038327]
[1641044551833,4.1072176,172.8,172.79,5.74038327]
[1641044552632,4.10711311,172.81,172.79,1.6292462]
[1641044553232,3.0,172.84,172.79,1.6292462]
[1641044553431,3.0,172.84,172.8,4.10710563]
[1641044553831,44.18005069,172.85,172.8,4.10710563]
[1641044554032,2.47758012,172.83,172.79,5.73635183]
[1641044554734,4.10711406,172.8,172.79,5.73635183]
[1641044555332,17.79543003,172.84,172.79,1.6292462]
[1641044555531,14.79543003,172.84,172.79,1.6292462]
[1641044556033,4.10710865,172.8,172.79,5.73635485]
[1641044556634,17.79543003,172.84,172.79,1.6292462]
[1641044557434,17.79543003,172.84,172.79,5.73645732]
[1641044557637,4.10721112,172.8,172.79,5.73645732]
[1641044558536,6.905,172.8,172.79,5.73645732]
[1641044559338,11.00826098,172.8,172.78,134.05023825]
[1641044560037,6.905,172.8,172.78,134.05023825]
[1641044561442,6.905,172.8,172.79,5.73513541]
[1641044562139,6.905,172.8,172.78,134.05023825]
[1641044563540,4.10085959,172.81,172.78,134.05023825]
[1641044563941,47.18005069,172.85,172.78,134.05023825]
[1641044564142,2.47380457,172.83,172.78,134.05023825]
[1641044564542,44.18005069,172.85,172.78,161.71502825]
[1641044564743,4.10075686,172.81,172.78,161.71502825]
[1641044565344,4.10068621,172.82,172.79,5.73418848]
[1641044565948,4.10050314,172.83,172.8,4.10721112]
[1641044566847,31.8622,172.85,172.8,4.10721112]
[1641044567047,2.47335192,172.84,172.8,5.73418848]
[1641044567847,4.10044653,172.83,172.8,4.10721112]
[1641044568650,4.10050399,172.82,172.79,5.73418848]
[1641044569149,31.8622,172.85,172.79,5.73418848]
[1641044569349,44.18005069,172.85,172.81,4.10721112]
[1641044569549,12.31785069,172.85,172.81,4.10721112]
[1641044569749,2.47883931,172.84,172.81,4.10721112]
[1641044571153,14.80682205,172.85,172.81,4.10721112]
[1641044571851,14.80653411,172.86,172.82,4.10721112]
[1641044573254,14.80653411,172.86,172.82,5.73418848]
[1641044574656,33.5969,172.87,172.82,5.73418848]
[1641044574857,12.3278721,172.85,172.81,4.10721112]
[1641044575256,11.82820849,172.86,172.81,4.10721112]
[1641044576058,14.80603047,172.86,172.82,4.10721112]
[1641044576658,12.32732844,172.86,172.82,4.10721112]
[1641044576859,33.5969,172.87,172.81,4.10721112]
[1641044577560,2.47236956,172.86,172.81,5.73418848]
[1641044578561,2.47236956,172.86,172.8,31.2894]
[1641044578562,33.5969,172.87,172.8,35.39661112]
[1641044579361,2.47235836,172.86,172.81,5.73370701]
[1641044580163,33.5969,172.87,172.81,5.73370701]
[1641044580964,2.47234001,172.86,172.81,5.73370701]
[1641044581467,33.5969,172.87,172.81,5.73370701]
[1641044582065,2.4723468,172.86,172.81,5.73370701]
[1641044582667,33.5969,172.87,172.81,5.73370701]
[1641044583167,3.0,172.86,172.81,5.73370701]
[1641044583366,2.4725655,172.86,172.8,35.39661112]
[1641044583868,5.4725655,172.86,172.8,35.39661112]
[1641044584870,4.09907144,172.83,172.8,31.2894]
[1641044585269,4.09907144,172.83,172.79,31.77200112]
[1641044585971,3.0,172.86,172.79,31.77200112]
[1641044586174,3.0,172.86,172.79,63.63140112]
[1641044586573,4.09903353,172.83,172.79,63.63140112]
[1641044587373,3.0,172.86,172.79,63.63140112]
[1641044587973,4.0990396,172.83,172.79,63.63140112]
[1641044588472,3.0,172.86,172.79,63.63140112]
[1641044588673,3.0,172.86,172.81,4.10721112]
[1641044588875,12.2965694,172.85,172.81,4.10721112]
[1641044589578,2.4787497,172.85,172.81,4.10721112]
[1641044590077,12.32785911,172.85,172.81,4.10721112]
[1641044590278,15.32785911,172.85,172.81,4.10721112]
[1641044590678,3.0,172.84,172.81,4.10721112]
[1641044590879,5.47885169,172.84,172.81,4.10721112]
[1641044591279,2.47885169,172.84,172.81,4.10721112]
[1641044591680,2.47364944,172.83,172.79,5.73775874]
[1641044592583,5.47372529,172.84,172.78,134.05023825]
[1641044593183,2.47372529,172.83,172.78,134.05023825]
[1641044593783,3.0,172.84,172.78,134.05023825]
[1641044593983,22.10981927,172.85,172.78,134.05023825]
[1641044594885,2.47371804,172.84,172.78,134.05023825]
[1641044596086,2.47371804,172.84,172.79,5.73417844]
[1641044596886,6.808,172.85,172.79,5.73417844]
[1641044597086,15.30181927,172.86,172.79,5.73417844]
[1641044597289,15.30181927,172.86,172.79,37.25407844]
[1641044597589,2.47326303,172.84,172.8,4.10721112]
[1641044597988,3.0,172.86,172.8,4.10721112]
[1641044598188,2.47326132,172.85,172.8,5.73417844]
[1641044598590,73.56350927,172.87,172.8,5.73417844]
[1641044598791,45.89871927,172.87,172.8,5.73417844]
[1641044599189,2.47313775,172.86,172.8,5.73417844]
[1641044600295,2.47313775,172.86,172.81,4.10721112]
[1641044600693,33.5969,172.87,172.81,4.10721112]
[1641044601396,2.47289176,172.86,172.81,4.10721112]
[1641044602191,33.5969,172.87,172.81,4.10721112]
[1641044602796,2.47303644,172.86,172.81,4.10721112]
[1641044603492,33.5969,172.87,172.81,4.10721112]
[1641044603894,30.5969,172.87,172.81,4.10721112]
[1641044604896,30.5969,172.87,172.8,5.73417844]
[1641044604897,4.10009946,172.83,172.8,5.73417844]
[1641044605497,2.47309178,172.86,172.8,5.73417844]
[1641044605998,4.10011729,172.84,172.81,4.10721112]
[1641044606703,30.5969,172.87,172.81,4.10721112]
[1641044606902,12.30181927,172.86,172.82,4.10721112]
[1641044607902,2.47843709,172.86,172.83,4.10721112]
[1641044608602,42.92393984,172.87,172.83,4.10721112]
[1641044608804,12.32703984,172.87,172.83,4.10721112]
[1641044609604,12.32703984,172.86,172.82,4.10721112]
[1641044610203,2.4784631,172.87,172.82,4.10721112]
[1641044610407,2.4784631,172.87,172.81,4.10721112]
[1641044615507,2.4784631,172.87,172.8,1.62696732]
[1641044615508,2.4784631,172.87,172.8,5.73417844]
[1641044617211,14.77528036,172.87,172.8,5.73417844]
[1641044617911,2.4784631,172.87,172.81,4.10721112]
[1641044619917,12.29681726,172.88,172.81,4.10721112]
[1641044619918,42.96160726,172.88,172.81,4.10721112]
[1641044620418,39.96160726,172.88,172.81,4.10721112]
[1641044620917,2.4784631,172.87,172.81,4.10721112]
[1641044621518,12.29681726,172.87,172.83,4.10721112]
[1641044622419,14.82633863,172.89,172.83,4.10721112]
[1641044622719,14.80469845,172.88,172.84,4.10721112]
[1641044622919,21.59369845,172.88,172.84,4.10721112]
[1641044623320,21.59369845,172.88,172.83,4.10721112]
[1641044623525,14.80469845,172.87,172.83,4.10721112]
[1641044624221,12.32623535,172.86,172.82,5.73417844]
[1641044624723,14.80526952,172.87,172.83,4.10721112]
[1641044627228,12.32680642,172.86,172.82,5.73417844]
[1641044627828,11.82701429,172.87,172.82,5.73417844]
[1641044628627,12.3270341,172.86,172.82,5.73417844]
[1641044629727,12.32320546,172.87,172.82,5.73417844]
[1641044631430,12.32320546,172.87,172.82,4.10721112]
[1641044631631,12.32320546,172.86,172.81,100.94229025]
[1641044631830,3.0,172.84,172.81,100.94229025]
[1641044632231,12.32320546,172.86,172.81,100.94229025]
[1641044632830,12.32320546,172.85,172.81,100.94229025]
[1641044633031,12.32320546,172.85,172.81,103.94229025]
[1641044634033,41.92491933,172.89,172.83,4.10721112]
[1641044634232,12.32241789,172.88,172.85,27.66479]
[1641044635031,58.83229,172.93,172.87,4.10721112]
[1641044635230,27.66479,172.93,172.87,4.10721112]
[1641044637636,9.3422401,172.92,172.86,4.10721112]
[1641044642839,9.3422401,172.92,172.85,27.66479]
[1641044642840,27.66479,172.93,172.88,4.10721112]
[1641044646046,29.8145,172.95,172.88,4.10721112]
[1641044646446,8.98982617,172.94,172.88,4.10721112]
[1641044648250,36.65461617,172.94,172.88,4.10721112]
[1641044648848,8.98982617,172.94,172.88,4.10721112]
[1641044649049,8.98982617,172.93,172.88,4.10721112]
[1641044649650,38.35721619,172.96,172.88,4.10721112]
[1641044649853,39.86744805,172.96,172.9,4.10721112]
[1641044650050,36.86744805,172.96,172.9,4.10721112]
[1641044650750,8.98802467,172.95,172.9,4.10721112]
[1641044657056,31.0866,172.96,172.91,4.10721112]
[1641044657858,8.98775659,172.95,172.9,4.10721112]
[1641044658559,8.98775659,172.95,172.91,4.10721112]
[1641044659160,34.0866,172.96,172.91,4.10721112]
[1641044662063,3.0,172.94,172.91,4.10721112]
[1641044662665,30.66479,172.94,172.91,4.10721112]
[1641044673180,27.66479,172.94,172.91,4.10721112]
[1641044673684,27.66479,172.94,172.92,4.10721112]
[1641044674284,2.34313921,172.93,172.92,4.10721112]
[1641044675182,27.66479,172.94,172.92,4.10721112]
[1641044675783,2.34316487,172.93,172.92,4.10721112]
[1641044676286,5.34316487,172.93,172.92,4.10721112]
[1641044676486,5.34316487,172.93,172.88,12.321728]
[1641044676784,8.967,172.93,172.88,12.321728]
[1641044677085,3.0,172.92,172.88,12.321728]
[1641044677384,27.66479,172.91,172.88,12.321728]
[1641044677985,27.66479,172.91,172.84,32.57636814]
[1641044677986,39.98890072,172.91,172.83,19.62300439]
[1641044678986,27.66479,172.91,172.83,19.62300439]
[1641044679787,39.98932549,172.91,172.83,19.62300439]
[1641044681789,39.98932549,172.91,172.83,12.321728]
[1641044681989,12.32453549,172.9,172.82,43.500128]
[1641044682389,27.66479,172.91,172.82,43.500128]
[1641044682589,39.98923987,172.91,172.83,19.62304961]
[1641044684093,12.32444987,172.9,172.82,43.500128]
[1641044685396,27.66479,172.91,172.82,43.500128]
[1641044685594,30.66479,172.91,172.82,43.500128]
[1641044686095,12.32528479,172.9,172.82,43.500128]
[1641044686898,27.66479,172.91,172.82,31.1784]
[1641044687696,30.66479,172.91,172.82,31.1784]
[1641044688096,27.66479,172.91,172.82,31.1784]
[1641044689098,30.66479,172.91,172.82,31.1784]
[1641044691299,27.66479,172.91,172.82,31.1784]
[1641044691798,30.66479,172.91,172.82,31.1784]
[1641044692598,27.66479,172.91,172.82,31.1784]
[1641044693099,30.66479,172.91,172.82,31.1784]
[1641044694099,12.32528479,172.89,172.82,31.1784]
[1641044695402,9.13272598,172.9,172.82,31.1784]
[1641044695700,9.13272598,172.9,172.81,12.321728]
[1641044696299,12.32569186,172.89,172.81,12.321728]
[1641044697003,9.13272598,172.9,172.81,12.321728]
[1641044697300,9.13272598,172.9,172.82,32.593]
[1641044697801,12.32567777,172.89,172.82,32.593]
[1641044698604,9.13272598,172.9,172.82,32.593]
[1641044699104,12.3256697,172.89,172.82,32.593]
[1641044699802,9.13272598,172.9,172.82,32.593]
[1641044700404,12.32565831,172.89,172.82,32.593]
[1641044701105,9.13272598,172.9,172.82,32.593]
[1641044701607,30.66479,172.91,172.82,32.593]
[1641044701807,12.32522185,172.9,172.82,12.321728]
[1641044702609,12.32522185,172.88,172.81,12.321728]
[1641044703312,30.9197,172.89,172.8,19.62326235]
[1641044703512,27.66479,172.88,172.8,19.62326235]
[1641044704111,39.99111632,172.88,172.8,19.62326235]
[1641044704816,42.99111632,172.88,172.8,19.62326235]
[1641044705017,3.0,172.84,172.8,19.62326235]
[1641044705214,3.0,172.82,172.8,19.62326235]
[1641044705613,27.66479,172.81,172.8,19.62326235]
[1641044705814,27.66479,172.81,172.8,12.321728]
[1641044706014,27.66479,172.81,172.77,12.321728]
[1641044706614,3.0,172.8,172.77,12.321728]
[1641044707015,3.0,172.8,172.75,12.321728]
[1641044707215,24.08879114,172.81,172.75,12.321728]
[1641044707916,24.08879114,172.81,172.73,3.0]
[1641044707917,12.32999786,172.8,172.73,3.0]
[1641044708715,12.32999786,172.79,172.73,3.0]
[1641044709617,24.08879114,172.81,172.73,3.0]
[1641044713421,24.08879114,172.81,172.72,32.6294]
[1641044715525,24.08879114,172.81,172.73,3.0]
[1641044716127,24.08879114,172.81,172.74,3.0]
[1641044716526,12.32999786,172.8,172.72,44.951128]
[1641044716727,12.32999786,172.8,172.74,3.0]
[1641044717025,12.32999786,172.8,172.72,44.951128]
[1641044717226,2.45890767,172.8,172.75,1.65159733]
[1641044717826,14.78890553,172.8,172.73,1.65159733]
[1641044718027,14.78890553,172.8,172.74,3.0]
[1641044718326,2.45890767,172.8,172.75,1.65159733]
[1641044719127,14.78890553,172.8,172.75,1.65159733]
[1641044720230,2.45890767,172.8,172.73,1.65159733]
[1641044720730,2.45890767,172.8,172.74,3.0]
[1641044721928,2.45890767,172.8,172.75,1.65159733]
[1641044723130,14.78890553,172.8,172.73,4.65159733]
[1641044723831,14.78890553,172.8,172.74,1.65159733]
[1641044726535,2.45890767,172.8,172.73,1.65159733]
[1641044727435,2.45890767,172.8,172.74,3.0]
[1641044727636,2.45890767,172.8,172.73,1.65159733]
[1641044728036,2.45890767,172.8,172.73,4.65159733]
[1641044728938,2.45890767,172.8,172.74,1.65159733]
[1641044732640,8.24510758,172.8,172.74,1.65159733]
[1641044733140,8.24510758,172.8,172.73,1.65159733]
[1641044733343,2.45890767,172.79,172.73,1.65159733]
[1641044735441,2.45890767,172.79,172.74,3.0]
[1641044736343,2.45890767,172.79,172.75,1.65159733]
[1641044737045,4.1056945,172.76,172.75,5.75729183]
[1641044738848,14.78890553,172.79,172.75,5.75729183]
[1641044740250,2.45890767,172.79,172.76,4.1056945]
[1641044741458,2.45890767,172.79,172.77,3.0]
[1641044742354,2.45890767,172.79,172.76,4.1056945]
[1641044743258,2.45890767,172.79,172.75,4.1056945]
[1641044747862,2.45890767,172.79,172.74,4.1056945]
[1641044748561,2.45890767,172.79,172.74,5.75570999]
[1641044749062,2.45890767,172.79,172.74,8.75570999]
[1641044749266,2.45890767,172.79,172.74,5.75570999]
[1641044749463,14.78890553,172.79,172.74,8.75570999]
[1641044750063,14.78890553,172.79,172.74,7.1056945]
[1641044750264,14.78890553,172.79,172.74,4.1056945]
[1641044750667,14.78890553,172.79,172.75,4.1056945]
[1641044751567,14.78890553,172.79,172.75,5.75725045]
[1641044751767,14.78890553,172.79,172.76,3.0]
[1641044752967,2.45890767,172.79,172.76,7.1056945]
[1641044753871,2.45890767,172.79,172.76,4.1056945]
[1641044754270,14.78890553,172.79,172.75,4.1056945]
[1641044755671,12.32999786,172.78,172.74,7.1056945]
[1641044756372,12.32999786,172.78,172.75,5.75724377]
[1641044756974,14.78890553,172.79,172.75,5.75724377]
[1641044758373,14.78890553,172.79,172.75,8.75724377]
[1641044758773,14.78890553,172.79,172.75,5.75724377]
[1641044759175,14.78890553,172.79,172.75,4.1056945]
[1641044759782,14.78890553,172.79,172.75,5.75724377]
[1641044761084,39.99478786,172.78,172.75,5.75724377]
[1641044761687,2.45890767,172.77,172.75,5.75724377]
[1641044763288,2.45890767,172.77,172.76,3.0]
[1641044763691,14.78890553,172.79,172.76,3.0]
[1641044763888,14.78890553,172.79,172.75,5.75724377]
[1641044764088,12.32999786,172.78,172.74,4.1056945]
[1641044764890,14.78890553,172.79,172.75,4.1056945]
[1641044766088,14.78890553,172.79,172.75,7.1056945]
[1641044766490,14.78890553,172.79,172.75,4.1056945]
[1641044766690,14.78890553,172.79,172.75,7.1056945]
[1641044768492,15.08516361,172.8,172.75,7.1056945]
[1641044768892,2.45923267,172.79,172.75,7.1056945]
[1641044769093,14.79163405,172.79,172.75,7.1056945]
[1641044769794,15.08516361,172.8,172.75,7.1056945]
[1641044770696,2.4591912,172.78,172.75,7.1056945]
[1641044772196,5.78619991,172.8,172.75,7.1056945]
[1641044772396,2.45915665,172.79,172.76,5.7572692]
[1641044772998,18.11839395,172.8,172.76,5.7572692]
[1641044773599,2.45914316,172.79,172.76,5.7572692]
[1641044774198,18.11839395,172.8,172.76,5.7572692]
[1641044774898,2.4591278,172.79,172.76,5.7572692]
[1641044775999,18.11839395,172.8,172.76,5.7572692]
[1641044776699,2.4591197,172.79,172.76,5.7572692]
[1641044777501,18.11839395,172.8,172.76,5.7572692]
[1641044778304,2.45915802,172.79,172.76,5.7572692]
[1641044778602,2.45915802,172.79,172.76,8.7572692]
[1641044779102,12.33219404,172.8,172.76,7.1056945]
[1641044779608,14.79132423,172.8,172.76,7.1056945]
[1641044780604,14.79132423,172.8,172.76,4.1056945]
[1641044781406,12.33219404,172.79,172.75,4.1056945]
[1641044782310,11.75750574,172.8,172.76,4.1056945]
[1641044783511,12.33218595,172.79,172.76,4.1056945]
[1641044784012,2.45913019,172.8,172.76,4.1056945]
[1641044784212,14.79130083,172.8,172.76,4.1056945]
[1641044785111,14.79130083,172.8,172.76,7.1056945]
[1641044785312,14.79130083,172.8,172.78,3.0]
[1641044785713,14.79130083,172.8,172.76,4.1056945]
[1641044785915,14.79130083,172.8,172.79,3.0]
[1641044786516,12.33217064,172.8,172.79,3.0]
[1641044786715,12.33217064,172.82,172.79,3.0]
[1641044788116,12.33217064,172.82,172.78,4.1056945]
[1641044789617,12.33217064,172.82,172.78,7.1056945]
[1641044789917,11.75552016,172.83,172.78,7.1056945]
[1641044790519,12.33042946,172.82,172.78,7.1056945]
[1641044791221,11.75552016,172.83,172.78,7.1056945]
[1641044791819,12.33039056,172.82,172.78,7.1056945]
[1641044792121,12.33039056,172.82,172.78,4.1056945]
[1641044792319,11.75552016,172.83,172.78,7.1056945]
[1641044793322,12.33034645,172.82,172.78,7.1056945]
[1641044793825,11.75552016,172.83,172.78,7.1056945]
[1641044794524,12.33058088,172.81,172.78,3.0]
[1641044795629,11.75552016,172.83,172.78,3.0]
[1641044796331,12.33063624,172.81,172.78,3.0]
[1641044797032,11.75552016,172.83,172.78,3.0]
[1641044797532,11.75552016,172.83,172.77,4.1056945]
[1641044797732,12.33047004,172.82,172.78,4.1056945]
[1641044798332,12.33047004,172.81,172.78,4.1056945]
[1641044798934,12.33113941,172.8,172.77,4.1056945]
[1641044799231,39.99592941,172.8,172.77,4.1056945]
[1641044799734,27.66479,172.8,172.77,4.1056945]
[1641044800634,2.45913019,172.79,172.76,5.75732628]
[1641044801234,4.10581136,172.77,172.76,5.75732628]
[1641044802236,2.45604109,172.79,172.76,8.75732628]
[1641044802836,4.10578754,172.77,172.76,7.1056945]
[1641044803038,4.10578754,172.77,172.76,4.1056945]
[1641044803536,2.45602896,172.79,172.76,5.75545827]
[1641044803940,27.66479,172.8,172.76,5.75545827]
[1641044804138,4.1057894,172.77,172.76,4.1056945]
[1641044804338,4.1057894,172.77,172.76,7.1056945]
[1641044804739,2.45604537,172.79,172.76,7.1056945]
[1641044805141,2.45604537,172.79,172.76,4.1056945]
[1641044805341,4.10580044,172.77,172.76,4.1056945]
[1641044805847,2.45603424,172.79,172.76,4.1056945]
[1641044806841,27.66479,172.8,172.76,5.75545779]
[1641044807040,4.10579861,172.77,172.76,5.75545779]
[1641044807645,27.66479,172.8,172.76,1.64976329]